bitfinex-derivatives/quotes_SOLF0:USTF0_20240912
["timestamp","ask_amount","ask_price","bid_price","bid_amount"]
[1726123084816,11.35,134.55,134.49,11.35]
[1726123085018,11.35,134.55,134.51,3.3451]
[1726123086116,103.51998523,134.63,134.5,3.3454]
[1726123086117,17.86,134.57,134.5,3.3454]
[1726123086417,17.86,134.57,134.48,2.7869]
[1726123087828,3.3445,134.54,134.5,3.3455]
[1726123088526,3.3445,134.54,134.48,2.7869]
[1726123088527,3.3443,134.55,134.51,3.3452]
[1726123089516,3.3443,134.55,134.5,3.3454]
[1726123089721,3.3446,134.54,134.5,3.3454]
[1726123091827,3.3444,134.55,134.5,3.3454]
[1726123092122,3.3444,134.55,134.51,3.3451]
[1726123092425,3.3444,134.55,134.48,6.1328]
[1726123092426,17.86,134.55,134.48,6.1328]
[1726123092616,17.86,134.53,134.44,2.7094]
[1726123092925,3.67219911,134.59,134.47,3.3462]
[1726123093220,17.86,134.53,134.44,24.31893205]
[1726123093425,17.86,134.53,134.49,3.3456]
[1726123093725,17.86,134.55,134.44,24.31893205]
[1726123094223,21.2044,134.55,134.5,3.3453]
[1726123094431,17.86,134.55,134.5,3.3453]
[1726123094728,21.2043,134.55,134.5,3.3453]
[1726123095819,3.3445,134.54,134.5,3.3453]
[1726123096329,21.2044,134.55,134.51,3.3451]
[1726123098031,21.2038,134.57,134.53,3.3447]
[1726123098249,17.86,134.57,134.53,3.3447]
[1726123098724,3.344,134.56,134.52,3.3449]
[1726123099125,17.86,134.55,134.46,17.86]
[1726123100129,3.3446,134.54,134.46,17.86]
[1726123100828,3.3446,134.54,134.5,3.3455]
[1726123101831,21.2043,134.55,134.46,17.86]
[1726123102130,21.2043,134.55,134.5,3.3453]
[1726123102426,21.2043,134.55,134.46,17.86]
[1726123102730,21.2043,134.55,134.51,3.3452]
[1726123103029,3.3443,134.55,134.51,3.3452]
[1726123104931,3.3441,134.56,134.52,3.345]
[1726123105629,3.3443,134.55,134.51,3.3452]
[1726123106635,3.3441,134.56,134.52,3.345]
[1726123106821,17.86,134.57,134.52,3.345]
[1726123107231,17.86,134.57,134.46,17.86]
[1726123107531,3.3444,134.55,134.51,3.3451]
[1726123108230,14.7744,134.55,134.51,3.3451]
[1726123109033,3.3446,134.54,134.51,3.3451]
[1726123113236,14.7743,134.55,134.51,3.3451]
[1726123114539,3.3447,134.54,134.5,3.3455]
[1726123115239,14.7748,134.53,134.49,3.3457]
[1726123115639,11.43,134.53,134.47,11.43]
[1726123116444,11.43,134.53,134.44,6.45893205]
[1726123116739,11.43,134.51,134.44,2.7094]
[1726123117743,3.3457,134.5,134.44,2.7094]
[1726123117942,3.3457,134.5,134.46,3.3464]
[1726123122650,14.7754,134.51,134.46,3.3464]
[1726123123351,14.7754,134.51,134.47,3.3462]
[1726123123553,14.7751,134.52,134.47,3.3462]
[1726123123745,14.7751,134.52,134.45,11.43]
[1726123124142,14.7751,134.52,134.47,3.3462]
[1726123124640,14.7751,134.52,134.45,11.43]
[1726123124846,11.43,134.53,134.46,11.43]
[1726123125050,3.3448,134.54,134.47,11.43]
[1726123125051,11.43,134.54,134.47,11.43]
[1726123125561,11.43,134.56,134.49,11.43]
[1726123125951,14.7742,134.56,134.49,11.43]
[1726123126156,14.7742,134.56,134.5,2.7194]
[1726123126349,14.7742,134.56,134.51,3.3451]
[1726123127259,11.43,134.56,134.52,3.3448]
[1726123127552,11.43,134.56,134.5,14.1494]
[1726123127757,14.7741,134.56,134.51,3.345]
[1726123128057,11.43,134.56,134.51,3.345]
[1726123128873,3.3443,134.55,134.51,3.345]
[1726123133966,3.3435,134.59,134.52,11.43]
[1726123134171,3.3435,134.59,134.54,11.43]
[1726123134571,11.43,134.59,134.53,11.43]
[1726123135073,3.3438,134.57,134.53,14.7746]
[1726123135665,3.3436,134.58,134.54,3.3445]
[1726123136272,3.3436,134.58,134.55,3.3442]
[1726123136974,14.7733,134.59,134.55,3.3442]
[1726123137569,3.3436,134.58,134.54,3.3444]
[1726123139170,3.3436,134.58,134.53,11.43]
[1726123139171,3.3436,134.58,134.55,3.3443]
[1726123140571,14.7738,134.57,134.51,5.10022687]
[1726123140771,14.7738,134.57,134.51,12.7714]
[1726123141573,14.7741,134.56,134.52,3.3448]
[1726123146589,11.43,134.55,134.52,3.3448]
[1726123148286,3.72220934,134.59,134.51,1.3414]
[1726123148585,103.52904769,134.61,134.52,11.43]
[1726123148586,11.43,134.58,134.52,11.43]
[1726123148976,11.43,134.57,134.52,11.43]
[1726123149189,11.43,134.57,134.51,1.3414]
[1726123149588,14.7739,134.57,134.53,3.3447]
[1726123151095,103.52904769,134.61,134.51,1.3414]
[1726123151096,3.3436,134.58,134.54,3.3444]
[1726123151283,11.43,134.58,134.54,3.3444]
[1726123151793,11.43,134.59,134.53,11.43]
[1726123152389,103.52904769,134.61,134.53,11.43]
[1726123152613,11.43,134.6,134.53,11.43]
[1726123152791,11.43,134.6,134.54,11.43]
[1726123152982,11.43,134.6,134.56,3.3438]
[1726123153488,114.95904769,134.61,134.55,2.7332]
[1726123153788,114.95904769,134.61,134.57,3.3435]
[1726123154093,114.95904769,134.61,134.55,2.7332]
[1726123154285,114.95904769,134.61,134.56,11.43]
[1726123154889,114.95904769,134.61,134.58,3.3435]
[1726123155286,114.95904769,134.61,134.57,3.3437]
[1726123155588,114.95904769,134.61,134.56,11.43]
[1726123156494,114.95904769,134.61,134.58,3.3433]
[1726123156698,114.95904769,134.61,134.56,12.8037]
[1726123156892,11.43,134.63,134.57,11.43]
[1726123157090,11.43,134.63,134.57,15.14570886]
[1726123157595,11.43,134.63,134.59,3.343]
[1726123157894,14.7723,134.63,134.59,3.343]
[1726123161793,3.3427,134.62,134.57,11.43]
[1726123161998,3.3427,134.62,134.58,3.3434]
[1726123163503,3.3427,134.62,134.59,3.3432]
[1726123163704,14.7723,134.63,134.59,3.3432]
[1726123164802,14.7723,134.63,134.6,3.343]
[1726123165999,14.7723,134.63,134.57,15.16903441]
[1726123167804,14.7723,134.63,134.59,3.3431]
[1726123170809,3.3427,134.62,134.58,3.3434]
[1726123171104,11.43,134.61,134.56,1.3737]
[1726123171707,14.7729,134.61,134.57,3.3437]
[1726123172307,14.7729,134.61,134.58,3.3435]
[1726123172507,14.7729,134.61,134.56,1.3737]
[1726123172907,14.7729,134.61,134.57,3.3436]
[1726123173211,14.7729,134.61,134.55,14.1632]
[1726123173212,3.343,134.6,134.55,14.1632]
[1726123173707,11.43,134.61,134.56,3.344]
[1726123175009,3.73225143,134.65,134.55,14.1632]
[1726123175010,11.43,134.58,134.55,2.7332]
[1726123175308,11.43,134.6,134.55,2.7332]
[1726123175503,3.3434,134.59,134.55,6.0772]
[1726123177010,14.7731,134.6,134.56,3.344]
[1726123179906,11.43,134.62,134.56,11.43]
[1726123180510,3.3427,134.62,134.58,3.3433]
[1726123180710,3.3427,134.62,134.57,11.43]
[1726123181516,3.3427,134.62,134.58,3.3434]
[1726123186718,3.3427,134.62,134.59,3.3433]
[1726123186926,228.0,134.7,134.59,11.43]
[1726123187229,1.17810146,134.69,134.62,3.3425]
[1726123187422,3.3417,134.66,134.62,3.3425]
[1726123187623,3.3417,134.66,134.6,11.43]
[1726123187923,587.48945754,134.74,134.62,11.43]
[1726123188231,11.43,134.69,134.63,11.43]
[1726123188728,587.48945754,134.74,134.64,11.43]
[1726123189031,11.56651623,134.79,134.64,11.43]
[1726123189032,11.43,134.71,134.64,11.43]
[1726123189831,11.43,134.71,134.66,3.3415]
[1726123189832,3.3407,134.7,134.66,3.3415]
[1726123190526,3.3408,134.69,134.65,3.3417]
[1726123192328,3.3411,134.68,134.64,3.342]
[1726123192530,11.43,134.69,134.64,3.342]
[1726123192730,11.43,134.69,134.63,11.43]
[1726123193365,11.43,134.67,134.62,4.0389]
[1726123193534,11.43,134.66,134.62,2.7188]
[1726123193832,14.7717,134.66,134.62,6.0613]
[1726123194032,11.43,134.66,134.62,2.7188]
[1726123194435,11.43,134.64,134.6,3.3429]
[1726123194935,14.7722,134.64,134.6,3.3429]
[1726123195331,3.3423,134.63,134.59,3.3432]
[1726123195932,3.3423,134.63,134.6,3.343]
[1726123198431,14.7721,134.64,134.6,3.343]
[1726123202837,3.3421,134.64,134.6,3.343]
[1726123207644,3.3423,134.63,134.59,3.3432]
[1726123208544,3.3427,134.62,134.58,6.0297]
[1726123208753,11.43,134.62,134.56,11.43]
[1726123209072,3.80479112,134.68,134.54,11.43]
[1726123209073,11.43,134.6,134.54,11.43]
[1726123209844,14.7731,134.6,134.56,3.3439]
[1726123210244,11.43,134.59,134.52,2.7409]
[1726123210550,11.43,134.59,134.55,3.3442]
[1726123210551,14.7733,134.59,134.55,3.3442]
[1726123210953,14.7733,134.59,134.54,3.3444]
[1726123210954,3.3435,134.58,134.54,3.3444]
[1726123211149,11.43,134.58,134.52,2.7409]
[1726123211751,3.3438,134.57,134.52,6.0857]
[1726123212341,3.3433,134.6,134.52,14.1709]
[1726123212545,14.7733,134.6,134.53,11.43]
[1726123213856,14.7733,134.6,134.55,3.3441]
[1726123214246,14.7733,134.6,134.53,11.43]
[1726123214247,3.3433,134.59,134.53,11.43]
[1726123215550,3.3433,134.59,134.54,3.3443]
[1726123216150,14.7731,134.6,134.55,3.3442]
[1726123216753,14.7728,134.61,134.56,3.3439]
[1726123220050,14.7731,134.6,134.56,3.3439]
[1726123223950,3.3434,134.59,134.54,14.7743]
[1726123224556,3.3434,134.59,134.55,3.3442]
[1726123225158,14.7731,134.6,134.56,3.3439]
[1726123226756,3.3433,134.59,134.56,3.3439]
[1726123229357,14.7732,134.6,134.56,3.3439]
[1726123230459,3.3433,134.59,134.56,3.3439]
[1726123230862,3.3433,134.59,134.55,3.3442]
[1726123231469,3.3433,134.59,134.56,3.344]
[1726123231764,11.43,134.6,134.53,11.43]
[1726123232158,3.3434,134.59,134.55,3.3441]
[1726123234062,14.7734,134.59,134.55,3.3441]
[1726123235266,11.43,134.58,134.54,3.3444]
[1726123236168,14.7736,134.58,134.54,3.3444]
[1726123237559,3.3436,134.58,134.54,3.3444]
[1726123237966,14.7736,134.58,134.54,3.3444]
[1726123252170,14.7736,134.58,134.55,3.3443]
[1726123253880,11.43,134.58,134.52,2.7409]
[1726123254081,11.43,134.58,134.52,14.1709]
[1726123254281,11.43,134.58,134.52,2.7409]
[1726123254482,14.7737,134.58,134.54,3.3444]
[1726123259489,3.344,134.56,134.53,3.3447]
[1726123259990,3.344,134.56,134.52,2.7409]
[1726123259991,3.3437,134.58,134.54,3.3445]
[1726123260192,14.7737,134.58,134.54,3.3445]
[1726123260391,13.476333,134.62,134.53,11.43]
[1726123260685,1.17809952,134.61,134.55,11.43]
[1726123260892,11.43,134.62,134.56,11.43]
[1726123261194,14.7727,134.62,134.58,3.3434]
[1726123262993,103.50090844,134.64,134.59,3.3432]
[1726123263289,114.93090844,134.64,134.59,3.3432]
[1726123263484,118.27310844,134.64,134.59,3.3432]
[1726123265684,118.27310844,134.64,134.57,19.28449143]
[1726123265890,106.84310844,134.64,134.59,11.43]
[1726123266388,103.50090844,134.64,134.59,11.43]
[1726123267880,103.50090844,134.64,134.61,3.3426]
[1726123268594,103.50090844,134.64,134.6,3.3429]
[1726123270588,106.84290844,134.64,134.6,3.3429]
[1726123273294,118.27290844,134.64,134.6,3.3429]
[1726123273497,114.93090844,134.64,134.57,19.28449143]
[1726123274292,3.3423,134.63,134.59,3.3431]
[1726123275096,3.3423,134.63,134.6,3.343]
[1726123277102,3.3426,134.62,134.57,4.1569]
[1726123278094,11.43,134.63,134.57,7.5006]
[1726123279802,3.343,134.61,134.57,7.5006]
[1726123281117,3.3426,134.62,134.58,3.3435]
[1726123281415,11.43,134.63,134.57,4.1569]
[1726123282905,3.343,134.61,134.57,7.5006]
[1726123288010,3.343,134.61,134.58,3.3435]
[1726123290609,11.43,134.6,134.58,3.3435]
[1726123290804,11.43,134.59,134.52,11.43]
[1726123291001,11.43,134.58,134.52,11.43]
[1726123291218,11.43,134.58,134.52,15.17042722]
[1726123291612,11.43,134.58,134.52,3.74042722]
[1726123292314,13.47053534,134.63,134.52,15.17042722]
[1726123292509,11.43,134.58,134.52,15.17042722]
[1726123293814,3.3439,134.57,134.53,3.3447]
[1726123295112,13.46985544,134.61,134.54,11.43]
[1726123295307,11.43,134.59,134.54,11.43]
[1726123295713,14.7734,134.59,134.55,3.3442]
[1726123296014,11.43,134.59,134.55,3.3442]
[1726123297321,14.7734,134.59,134.55,3.3442]
[1726123297819,14.7734,134.59,134.56,3.344]
[1726123298021,11.43,134.59,134.56,3.344]
[1726123299916,14.7734,134.59,134.56,3.344]
[1726123300617,14.7734,134.59,134.55,3.3442]
[1726123302326,3.3431,134.6,134.56,3.344]
[1726123302520,11.43,134.59,134.53,3.68699185]
[1726123302720,11.43,134.59,134.53,11.43]
[1726123302922,11.43,134.59,134.55,3.3441]
[1726123303120,11.43,134.59,134.53,11.43]
[1726123303524,3.3437,134.58,134.54,3.3445]
[1726123314626,3.3438,134.57,134.54,3.3445]
[1726123319832,14.7732,134.6,134.56,3.3438]
[1726123325236,3.3435,134.59,134.55,3.3442]
[1726123327435,11.43,134.6,134.54,11.43]
[1726123327648,3.3431,134.6,134.56,3.3439]
[1726123328538,3.3433,134.59,134.55,3.3442]
[1726123330431,14.7733,134.59,134.55,3.3442]
[1726123335045,14.7733,134.59,134.56,3.344]
[1726123338349,3.3433,134.59,134.56,3.344]
[1726123343352,3.3431,134.6,134.56,3.344]
[1726123345046,3.3434,134.59,134.56,3.344]
[1726123346154,3.3434,134.59,134.55,3.3442]
[1726123351764,3.3436,134.58,134.55,3.3442]
[1726123357358,3.3433,134.59,134.55,3.3442]
[1726123358754,16.81861119,134.59,134.55,3.3442]
[1726123359364,3.3433,134.59,134.55,3.3442]
[1726123359758,3.3433,134.59,134.56,3.344]
[1726123360163,16.81861119,134.59,134.56,3.344]
[1726123360558,3.3433,134.59,134.56,3.344]
[1726123361358,16.81861119,134.59,134.56,3.344]
[1726123361558,3.3433,134.59,134.56,3.344]
[1726123362368,16.81861119,134.59,134.56,3.344]
[1726123362969,3.3433,134.59,134.56,3.344]
[1726123363162,14.7731,134.6,134.56,3.344]
[1726123363363,13.47935869,134.61,134.56,11.43]
[1726123363569,11.43,134.62,134.56,11.43]
[1726123363763,57.37488144,134.62,134.56,11.43]
[1726123363971,3.343,134.6,134.57,3.3437]
[1726123364955,3.343,134.6,134.56,14.7739]
[1726123367270,3.343,134.6,134.57,3.3437]
[1726123368467,14.7729,134.61,134.57,3.3437]
[1726123369474,28.25207765,134.61,134.57,3.3437]
[1726123369671,14.7729,134.61,134.57,3.3437]
[1726123370572,28.25190703,134.61,134.57,3.3437]
[1726123370873,14.7729,134.61,134.57,3.3437]
[1726123371275,3.3429,134.61,134.58,3.3435]
[1726123371570,16.82116273,134.61,134.56,11.43]
[1726123371769,16.82116273,134.61,134.55,14.0809]
[1726123371965,16.82116273,134.61,134.57,3.3436]
[1726123372170,3.3429,134.61,134.57,3.3436]
[1726123372971,16.81577186,134.61,134.57,3.3436]
[1726123373775,3.3429,134.61,134.57,3.3436]
[1726123374370,16.81577186,134.61,134.57,3.3436]
[1726123374775,3.3429,134.61,134.57,3.3436]
[1726123375181,16.81577186,134.61,134.57,3.3436]
[1726123375474,3.3429,134.61,134.57,3.3436]
[1726123376075,16.81577186,134.61,134.57,3.3436]
[1726123376678,3.3429,134.61,134.57,3.3436]
[1726123377076,11.43,134.61,134.55,2.6509]
[1726123377387,57.34292083,134.61,134.55,2.6509]
[1726123377587,11.43,134.61,134.55,2.6509]
[1726123377794,3.3434,134.59,134.55,5.9951]
[1726123382575,3.3434,134.59,134.56,3.344]
[1726123383972,45.91710922,134.62,134.55,2.6509]
[1726123383973,45.91710922,134.61,134.57,3.3438]
[1726123384280,11.43,134.62,134.57,11.43]
[1726123384878,11.43,134.62,134.58,3.3433]
[1726123385479,3.3426,134.62,134.57,11.43]
[1726123385679,14.7726,134.62,134.57,11.43]
[1726123386082,60.6915648,134.62,134.57,11.43]
[1726123386282,13.47324219,134.61,134.58,3.3434]
[1726123387490,14.7726,134.62,134.58,3.3434]
[1726123387690,16.47256723,134.62,134.61,11.43]
[1726123387987,11.43,134.69,134.61,15.13475102]
[1726123388191,11.16161644,134.76,134.61,15.13475102]
[1726123388192,3.3413,134.67,134.64,11.43]
[1726123388589,13.48487595,134.68,134.64,11.43]
[1726123388792,15.99354584,134.68,134.64,11.43]
[1726123388981,3.341,134.69,134.64,14.7718]
[1726123389185,16.82587595,134.69,134.64,14.7718]
[1726123389788,3.3412,134.68,134.64,11.43]
[1726123389992,3.3412,134.68,134.63,14.7722]
[1726123390495,16.82607595,134.68,134.63,14.7722]
[1726123390689,3.3412,134.68,134.63,14.7722]
[1726123391487,3.3412,134.68,134.64,3.3419]
[1726123391692,3.3409,134.69,134.63,11.43]
[1726123392327,3.3409,134.69,134.62,1.3605]
[1726123392328,3.3411,134.68,134.62,1.3605]
[1726123392493,3.3411,134.68,134.63,11.43]
[1726123393694,3.3415,134.67,134.63,11.43]
[1726123394391,3.3415,134.67,134.63,14.772]
[1726123395097,3.3411,134.68,134.64,3.342]
[1726123395996,3.3413,134.67,134.64,3.342]
[1726123396798,3.3413,134.67,134.63,14.7722]
[1726123399999,3.3413,134.67,134.63,3.3422]
[1726123400303,3.3413,134.67,134.63,14.7722]
[1726123400694,11.43,134.69,134.63,14.7722]
[1726123400894,1.17874823,134.68,134.63,14.7722]
[1726123401295,24.91487595,134.69,134.63,14.7722]
[1726123401499,3.3413,134.67,134.63,14.7722]
[1726123402499,3.3413,134.67,134.64,3.342]
[1726123402903,3.3413,134.67,134.63,11.43]
[1726123403501,3.3413,134.67,134.63,14.7722]
[1726123406099,3.3413,134.67,134.64,3.342]
[1726123406304,3.3411,134.68,134.64,3.342]
[1726123406606,11.43,134.7,134.64,3.342]
[1726123406806,1.17871393,134.69,134.64,3.342]
[1726123407208,3.3412,134.68,134.64,3.342]
[1726123408506,3.3412,134.68,134.65,3.3418]
[1726123408810,3.3412,134.68,134.64,3.3419]
[1726123409900,3.3412,134.68,134.65,3.3418]
[1726123410099,3.3412,134.68,134.63,11.43]
[1726123410500,3.3412,134.68,134.64,3.3419]
[1726123411507,11.43,134.7,134.63,3.3422]
[1726123411508,3.3413,134.67,134.63,3.3422]
[1726123419012,3.3411,134.68,134.64,11.43]
[1726123420817,3.3409,134.69,134.65,11.43]
[1726123421721,3.3409,134.69,134.65,14.7716]
[1726123421921,3.3409,134.69,134.65,11.43]
[1726123422819,3.3409,134.69,134.66,3.3415]
[1726123423817,3.3409,134.69,134.65,14.7717]
[1726123425927,3.341,134.68,134.65,14.7717]
[1726123426222,3.341,134.68,134.65,3.3417]
[1726123426424,3.341,134.68,134.64,3.342]
[1726123426728,11.43,134.65,134.5,6.6908]
[1726123427021,1.3252,134.72,134.45,132.0950467]
[1726123427022,11.43,134.63,134.54,4.0219]
[1726123427217,3.3428,134.61,134.56,11.43]
[1726123427446,3.3428,134.61,134.57,3.3437]
[1726123429011,3.3426,134.62,134.58,3.3435]
[1726123431247,3.3426,134.62,134.57,3.3437]
[1726123432830,11.43,134.61,134.57,3.3437]
[1726123434631,14.7728,134.61,134.57,3.3437]
[1726123437428,3.3431,134.6,134.57,3.3437]
[1726123438331,3.3429,134.61,134.57,3.3437]
[1726123438627,14.7729,134.61,134.57,3.3437]
[1726123441026,11.43,134.6,134.54,15.4519]
[1726123441252,11.43,134.6,134.54,19.14188327]
[1726123441427,3.3435,134.59,134.56,3.344]
[1726123441925,14.7731,134.6,134.57,3.3437]
[1726123442129,11.43,134.61,134.57,3.3437]
[1726123442428,14.7729,134.61,134.57,3.3437]
[1726123445131,3.3431,134.6,134.57,3.3437]
[1726123446130,3.3433,134.59,134.56,3.3439]
[1726123446430,3.3433,134.59,134.55,11.43]
[1726123446731,3.3433,134.59,134.54,7.71188327]
[1726123447324,11.43,134.58,134.54,1.2953]
[1726123448329,14.7736,134.58,134.54,4.6397]
[1726123451328,11.43,134.58,134.55,3.3441]
[1726123451533,11.43,134.6,134.55,3.3441]
[1726123451735,3.3433,134.59,134.55,3.3441]
[1726123452533,11.43,134.6,134.56,3.344]
[1726123452534,14.7732,134.6,134.56,3.344]
[1726123453938,3.3432,134.6,134.56,3.344]
[1726123454138,14.7732,134.6,134.56,3.344]
[1726123457637,3.3433,134.59,134.56,3.344]
[1726123462338,11.43,134.61,134.57,3.3438]
[1726123463239,14.7729,134.61,134.57,3.3438]
[1726123464146,3.3432,134.6,134.56,3.3439]
[1726123465144,3.3432,134.6,134.57,3.3437]
[1726123466048,14.7729,134.61,134.57,3.3437]
[1726123467948,3.3424,134.63,134.59,3.3432]
[1726123468148,11.43,134.62,134.59,3.3432]
[1726123469748,14.7726,134.62,134.59,3.3432]
[1726123477159,14.7726,134.62,134.58,3.3434]
[1726123477664,14.7726,134.62,134.54,1.2953]
[1726123477665,2.7183,134.65,134.56,11.43]
[1726123477969,11.43,134.63,134.56,11.43]
[1726123478861,3.3426,134.62,134.59,3.3432]
[1726123486263,14.7726,134.62,134.59,3.3432]
[1726123486877,11.43,134.62,134.59,3.3432]
[1726123490373,11.43,134.63,134.6,3.3429]
[1726123490569,3.3421,134.64,134.6,3.3429]
[1726123490773,11.43,134.63,134.6,3.3429]
[1726123491775,11.43,134.63,134.58,11.43]
[1726123492767,3.3421,134.64,134.6,3.3429]
[1726123492969,11.43,134.63,134.6,3.3429]
[1726123494063,14.7723,134.63,134.6,3.3429]
[1726123496873,28.24730636,134.63,134.6,3.3429]
[1726123497076,14.7723,134.63,134.6,3.3429]
[1726123498577,28.24937141,134.63,134.6,3.3429]
[1726123498772,14.7723,134.63,134.6,3.3429]
[1726123500077,28.25002591,134.63,134.59,3.3432]
[1726123500279,14.7723,134.63,134.59,3.3432]
[1726123502279,11.43,134.61,134.54,12.7253]
[1726123502478,11.43,134.61,134.54,1.2953]
[1726123502673,14.7729,134.61,134.54,12.7253]
[1726123502874,14.7729,134.61,134.57,3.3437]
[1726123504777,11.43,134.61,134.54,1.2953]
[1726123505075,11.43,134.58,134.54,1.2953]
[1726123505297,14.7735,134.58,134.54,4.6398]
[1726123505778,14.7735,134.58,134.54,3.3445]
[1726123506280,14.7738,134.57,134.53,3.3447]
[1726123506577,11.43,134.57,134.51,3.75603556]
[1726123506781,11.43,134.57,134.42,4.1416]
[1726123506980,11.43,134.57,134.5,11.43]
[1726123507179,11.43,134.57,134.51,3.65718274]
[1726123507684,3.3442,134.56,134.52,3.3448]
[1726123507883,11.43,134.57,134.51,3.65718274]
[1726123508782,11.43,134.57,134.53,3.3448]
[1726123508783,14.7738,134.57,134.53,3.3448]
[1726123509586,11.43,134.57,134.53,3.3448]
[1726123510790,14.7738,134.57,134.53,3.3448]
[1726123513478,11.43,134.57,134.43,104.62028494]
[1726123513693,14.774,134.56,134.52,3.3449]
[1726123514794,11.43,134.54,134.52,3.3449]
[1726123515495,11.43,134.55,134.52,3.3449]
[1726123517685,14.7743,134.55,134.52,3.3449]
[1726123518797,14.7743,134.55,134.51,3.3452]
[1726123518986,14.7746,134.54,134.51,3.3452]
[1726123519396,14.7746,134.54,134.5,3.3454]
[1726123519397,11.43,134.53,134.5,3.3454]
[1726123520298,11.43,134.53,134.51,3.3452]
[1726123522826,29.43719004,134.59,134.52,3.345]
[1726123523096,11.43,134.55,134.52,3.345]
[1726123526303,14.7743,134.55,134.51,3.3452]
[1726123526895,11.43,134.54,134.51,3.3452]
[1726123527398,14.7745,134.54,134.51,3.3452]
[1726123527705,11.43,134.54,134.51,3.3452]
[1726123527902,14.7745,134.54,134.51,3.3452]
[1726123529002,11.43,134.52,134.48,2.6569]
[1726123529203,11.43,134.52,134.48,1.3547]
[1726123532900,11.43,134.52,134.5,3.3455]
[1726123534598,11.43,134.51,134.41,3.65876319]
[1726123534803,11.43,134.46,134.41,3.65876319]
[1726123535595,11.43,134.46,134.43,3.3471]
[1726123535792,11.43,134.46,134.41,3.65876319]
[1726123536908,11.43,134.46,134.44,3.3469]
[1726123541206,11.43,134.46,134.45,3.3468]
[1726123550828,3.3459,134.49,134.46,3.3464]
[1726123551031,3.3456,134.5,134.42,4.0109]
[1726123551224,11.43,134.48,134.42,4.0109]
[1726123551421,11.43,134.48,134.47,3.3463]
[1726123552514,11.43,134.48,134.46,3.3464]
[1726123555128,11.43,134.47,134.46,3.3464]
[1726123555427,11.43,134.47,134.45,3.3467]
[1726123562331,1.3019,134.53,134.46,3.3465]
[1726123562629,29.44450477,134.63,134.46,11.43]
[1726123562832,11.43,134.53,134.47,12.7869]
[1726123563139,14.7748,134.53,134.47,12.7869]
[1726123563827,3.3446,134.54,134.48,3.76078127]
[1726123564132,11.43,134.53,134.48,3.76078127]
[1726123564437,3.3444,134.55,134.48,3.76078127]
[1726123564631,11.43,134.54,134.48,2.6192]
[1726123564823,11.43,134.54,134.49,3.77379693]
[1726123565631,2.6866,134.6,134.48,14.0492]
[1726123565829,11.43,134.56,134.5,11.43]
[1726123566030,11.43,134.56,134.51,3.80540638]
[1726123567223,11.43,134.56,134.5,11.43]
[1726123567423,2.6866,134.6,134.48,6.2476295]
[1726123567424,11.43,134.53,134.48,6.2476295]
[1726123568029,11.43,134.53,134.5,3.3453]
[1726123569136,11.43,134.54,134.48,17.6776295]
[1726123569434,11.43,134.55,134.49,11.43]
[1726123570840,11.43,134.55,134.52,3.3449]
[1726123573238,14.7743,134.55,134.51,3.3452]